fUSD/lending_fUSD_20250523
["ID","MTS","AMOUNT","RATE_DAILY","PERIOD"]
[362094220,1747990248726,-465.76530533,0.00027671,4]
[362094221,1747990248735,-420.0,0.00027671,4]
[362094222,1747990248745,-503.41419429,0.00027671,4]
[362094223,1747990248755,-429.23719224,0.00027671,4]
[362094224,1747990248770,-420.0,0.00027671,4]
[362094225,1747990248782,-420.0,0.00027671,4]
[362094226,1747990248794,-420.0,0.00027671,4]
[362094227,1747990248805,-420.0,0.00027671,4]
[362094228,1747990248816,-420.0,0.00027671,4]
[362094229,1747990248826,-459.1714228,0.00027671,4]
[362094230,1747990248837,-508.8514433,0.00027671,4]
[362094231,1747990248848,-420.0,0.00027671,4]
[362094232,1747990248858,-420.0,0.00027671,4]
[362094233,1747990248868,-369.70555272,0.00027671,4]
[362094234,1747990248878,-420.0,0.00027671,4]
[362094235,1747990248888,-261.48,0.00027671,4]
[362094236,1747990248898,-451.87330306,0.00027671,4]
[362094237,1747990248908,-445.73931833,0.00027671,4]
[362094238,1747990248918,-384.76543135,0.00027671,4]
[362094239,1747990248927,-478.19987514,0.00027671,4]
[362094240,1747990248937,-420.0,0.00027671,4]
[362094241,1747990248948,-420.0,0.00027671,4]
[362094242,1747990248957,-306.50658257,0.00027671,4]
[362094243,1747990248967,-420.0,0.00027671,4]
[362094244,1747990248977,-420.0,0.00027671,4]
[362094245,1747990248987,-420.0,0.00027671,4]
[362094246,1747990248996,-420.0,0.00027671,4]
[362094247,1747990249006,-420.0,0.00027671,4]
[362094248,1747990249019,-420.0,0.00027671,4]
[362094249,1747990249030,-420.0,0.00027671,4]
[362094250,1747990249040,-420.0,0.00027671,4]
[362094251,1747990249051,-420.0,0.00027671,4]
[362094252,1747990249061,-420.0,0.00027671,4]
[362094253,1747990249072,-420.0,0.00027671,4]
[362094254,1747990249082,-1059.36,0.00027671,4]
[362094255,1747990249092,-638.13,0.00027671,4]
[362094256,1747990249102,-423.10479672,0.00027671,4]
[362094257,1747990249114,-3219.98,0.00027671,4]
[362094258,1747990249124,-420.0,0.00027671,4]
[362094259,1747990249135,-764.74,0.00027671,4]
[362094260,1747990249146,-420.0,0.00027671,4]
[362094261,1747990249157,-855.11,0.00027671,4]
[362094262,1747990249167,-420.0,0.00027671,4]
[362094263,1747990249177,-1568.78,0.00027671,4]
[362094264,1747990249188,-420.0,0.00027671,4]
[362094265,1747990249199,-536.4,0.00027671,4]
[362094266,1747990249210,-420.0,0.00027671,4]
[362094267,1747990249221,-420.0,0.00027671,4]
[362094268,1747990249232,-420.0,0.00027671,4]
[362094269,1747990249244,-420.0,0.00027671,4]
[362094270,1747990249256,-420.0,0.00027671,4]
[362094271,1747990249268,-420.0,0.00027671,4]
[362094272,1747990249280,-420.0,0.00027671,4]
[362094273,1747990249291,-420.0,0.00027671,4]
[362094274,1747990249302,-1351.93,0.00027671,4]
[362094275,1747990249313,-420.57,0.00027671,4]
[362094276,1747990249325,-420.0,0.00027671,4]
[362094277,1747990249335,-420.0,0.00027671,4]
[362094278,1747990249346,-420.0,0.00027671,4]
[362094279,1747990249356,-420.0,0.00027671,4]
[362094280,1747990249366,-420.0,0.00027671,4]
[362094281,1747990249376,-8771.26,0.00027671,4]
[362094282,1747990249386,-449.75,0.00027671,4]
[362094283,1747990249396,-420.0,0.00027671,4]
[362094284,1747990249406,-528.33,0.00027671,4]
[362094285,1747990249418,-420.0,0.00027671,4]
[362094286,1747990249428,-420.0,0.00027671,4]
[362094287,1747990249439,-420.0,0.00027671,4]
[362094288,1747990249449,-666.63,0.00027671,4]
[362094289,1747990249459,-780.1,0.00027671,2]
[362094290,1747990249469,-420.0,0.00027671,4]
[362094291,1747990249479,-420.0,0.00027671,4]
[362094292,1747990249490,-420.0,0.00027671,4]
[362094293,1747990249499,-420.0,0.00027671,4]
[362094294,1747990249509,-420.0,0.00027671,4]
[362094295,1747990249518,-498.47,0.00027671,4]
[362094296,1747990249528,-420.0,0.00027671,4]
[362094297,1747990249537,-921.38,0.00027671,4]
[362094298,1747990249548,-420.0,0.00027671,4]
[362094299,1747990249559,-675.59,0.00027671,4]
[362094300,1747990249569,-458.3,0.00027671,4]
[362094301,1747990249579,-3080.82,0.00027671,4]
[362094302,1747990249590,-420.0,0.00027671,4]
[362094303,1747990249600,-447.19,0.00027671,4]
[362094304,1747990249609,-420.0,0.00027671,4]
[362094305,1747990249619,-1795.87,0.00027671,4]
[362094306,1747990249628,-420.0,0.00027671,4]
[362094307,1747990249638,-500.0,0.00027673,5]
[362094308,1747990249648,-500.64632169,0.00027673,5]
[362094309,1747990249659,-500.0,0.00027673,5]
[362094310,1747990249669,-503.34841954,0.00027673,5]
[362094311,1747990249679,-500.51267313,0.00027673,5]
[362094312,1747990249689,-12432.5193559,0.00027694,3]
[362094313,1747990249699,-400.0,0.000277,10]
[362094314,1747990249710,-8104.16187456,0.00027704,2]
[362094315,1747990249723,-12314.84118196,0.00027777,3]
[362094316,1747990250084,-420.0,0.00027397,4]
[362094317,1747990250095,-420.0,0.00027534,4]
[362094318,1747990250104,-420.0,0.00027671,4]
[362094319,1747990250114,-197.58407764,0.00027777,3]
[362094320,1747990250124,-24865.0387118,0.00027778,3]
[362094321,1747990250134,-12432.5193559,0.00027787,3]
[362094322,1747990250144,-37537.2757788,0.00027788,3]
[362094323,1747990250154,-430.47846103,0.00027788,2]
[362094324,1747990250164,-15178.22051698,0.00027797,3]
[362094325,1747990250176,-1335.81629999,0.00027797,3]
[362094326,1747990250189,-8510.81370223,0.00027797,3]
[362094327,1747990250200,-4316.42893208,0.00027797,3]
[362094328,1747990250223,-1019.84969894,0.00027797,3]
[362094329,1747990250236,-1345.78902092,0.00027797,3]
[362094330,1747990250248,-18182.97105986,0.00027797,3]
[362094331,1747990250257,-1018.55632614,0.00027798,3]
[362094332,1747990250455,-952.54,0.00027397,4]
[362094333,1747990250465,-156.36,0.00027534,4]
[362094334,1747990250505,-796.18,0.00027534,4]
[362094335,1747990250515,-344.77406512,0.00027561,2]
[362094336,1747990250525,-952.54,0.00027671,4]
[362094337,1747990250534,-11493.86893346,0.00027798,3]
[362094338,1747990250544,-37297.5580678,0.00027798,3]
[362094339,1747990250553,-151.0,0.00027798,7]
[362094340,1747990250563,-151.0,0.00027798,7]
[362094341,1747990250573,-151.0,0.00027798,7]
[362094342,1747990250583,-274.335986,0.00027798,7]
[362094343,1747990250593,-800.0,0.000278,10]
[362094344,1747990250602,-310.142008,0.00027807,4]
[362094345,1747990250612,-421.81595048,0.00027807,4]
[362094346,1747990250622,-420.0,0.00027807,4]
[362094347,1747990250631,-420.0,0.00027807,4]
[362094348,1747990250641,-420.0,0.00027807,4]
[362094349,1747990250650,-420.0,0.00027807,4]
[362094350,1747990250660,-198.18923029,0.00027807,4]
[362094351,1747990250670,-526.02586294,0.00027807,4]
[362094352,1747990250679,-420.0,0.00027807,4]
[362094353,1747990250689,-420.0,0.00027807,4]
[362094354,1747990250699,-420.0,0.00027807,4]
[362094355,1747990250709,-420.0,0.00027807,4]
[362094356,1747990250723,-420.0,0.00027807,4]
[362094357,1747990250734,-420.0,0.00027807,4]
[362094358,1747990250743,-420.0,0.00027807,4]
[362094359,1747990250755,-687.24,0.00027807,4]
[362094360,1747990250765,-326.04634166,0.00027807,4]
[362094361,1747990250775,-420.0,0.00027807,4]
[362094362,1747990250784,-228.06,0.00027807,4]
[362094363,1747990250794,-420.0,0.00027807,4]
[362094364,1747990250804,-420.0,0.00027807,4]
[362094365,1747990250813,-420.0,0.00027807,4]
[362094366,1747990250823,-420.0,0.00027807,4]
[362094367,1747990250832,-420.0,0.00027807,4]
[362094368,1747990250842,-420.0,0.00027807,4]
[362094369,1747990250851,-420.0,0.00027807,4]
[362094370,1747990250861,-420.0,0.00027807,4]
[362094371,1747990250870,-420.0,0.00027807,4]
[362094372,1747990250879,-420.0,0.00027807,4]
[362094373,1747990250889,-420.0,0.00027807,4]
[362094374,1747990250898,-420.0,0.00027807,4]
[362094375,1747990250908,-420.0,0.00027807,4]
[362094376,1747990250970,-420.0,0.00027807,4]
[362094377,1747990250979,-420.0,0.00027807,4]
[362094378,1747990250989,-357.40262473,0.00027807,4]
[362094379,1747990250998,-1000.0,0.00027807,2]
[362094380,1747990251008,-451.762012,0.00027807,4]
[362094381,1747990251017,-420.0,0.00027807,4]
[362094382,1747990251027,-420.0,0.00027807,4]
[362094383,1747990251036,-420.0,0.00027807,4]
[362094384,1747990251046,-420.0,0.00027807,4]
[362094385,1747990251055,-420.0,0.00027807,4]
[362094386,1747990251065,-420.0,0.00027807,4]
[362094387,1747990251075,-240.35568096,0.00027807,4]
[362094388,1747990251084,-420.0,0.00027807,4]
[362094389,1747990251093,-420.0,0.00027807,4]
[362094390,1747990251102,-420.0,0.00027807,4]
[362094391,1747990251111,-5569.15,0.00027807,4]
[362094392,1747990251121,-2347.06,0.00027807,4]
[362094393,1747990251131,-420.0,0.00027807,4]
[362094394,1747990251140,-420.0,0.00027807,4]
[362094395,1747990251149,-420.0,0.00027807,4]
[362094396,1747990251159,-420.0,0.00027807,4]
[362094397,1747990251169,-420.0,0.00027807,4]
[362094398,1747990251179,-420.0,0.00027807,4]
[362094399,1747990251188,-420.0,0.00027807,4]
[362094400,1747990251198,-218.57131663,0.00027807,4]
[362094401,1747990251208,-5982.83,0.00027807,4]
[362094402,1747990251217,-420.0,0.00027807,4]
[362094403,1747990251227,-420.0,0.00027807,4]
[362094404,1747990251238,-420.0,0.00027807,4]
[362094405,1747990251247,-420.0,0.00027807,4]
[362094406,1747990251256,-420.0,0.00027807,4]
[362094407,1747990251267,-420.0,0.00027807,4]
[362094408,1747990251278,-420.0,0.00027807,4]
[362094409,1747990251287,-542.68,0.00027807,4]
[362094410,1747990251297,-420.0,0.00027807,4]
[362094411,1747990251306,-420.0,0.00027807,4]
[362094412,1747990251316,-420.0,0.00027807,4]
[362094413,1747990251325,-420.0,0.00027807,4]
[362094414,1747990251334,-4610.09,0.00027807,4]
[362094415,1747990251343,-420.0,0.00027807,4]
[362094416,1747990251352,-521.05,0.00027807,4]
[362094417,1747990251362,-420.0,0.00027807,4]
[362094418,1747990251371,-420.0,0.00027807,4]
[362094419,1747990251381,-420.0,0.00027807,4]
[362094420,1747990251391,-420.0,0.00027807,4]
[362094421,1747990251400,-420.0,0.00027807,4]
[362094422,1747990251410,-420.0,0.00027807,4]
[362094423,1747990251419,-421.0995488,0.00027807,4]
[362094424,1747990251428,-420.0,0.00027807,4]
[362094425,1747990251437,-989.54,0.00027807,4]
[362094426,1747990251448,-420.0,0.00027807,4]
[362094427,1747990251457,-420.0,0.00027807,4]
[362094428,1747990251467,-420.0,0.00027807,4]
[362094429,1747990251477,-420.0,0.00027807,4]
[362094430,1747990251486,-420.0,0.00027807,4]
[362094431,1747990251495,-657.76,0.00027807,4]
[362094432,1747990251504,-420.0,0.00027807,4]
[362094433,1747990251514,-649.68,0.00027807,4]
[362094434,1747990251524,-420.0,0.00027807,4]
[362094435,1747990251533,-420.0,0.00027807,4]
[362094436,1747990251543,-827.47,0.00027807,4]
[362094437,1747990251552,-420.0,0.00027807,4]
[362094438,1747990251562,-420.0,0.00027807,4]
[362094439,1747990251572,-420.0,0.00027807,4]
[362094440,1747990251582,-420.0,0.00027807,4]
[362094441,1747990251592,-221.75,0.00027807,4]
[362094442,1747990251601,-218.1720993,0.00027807,4]
[362094443,1747990251610,-420.0,0.00027807,4]
[362094444,1747990251619,-420.0,0.00027807,4]
[362094445,1747990251628,-420.0,0.00027808,4]
[362094446,1747990251638,-420.0,0.00027808,4]
[362094447,1747990251647,-420.0,0.00027808,4]
[362094448,1747990251656,-420.0,0.00027808,4]
[362094449,1747990251665,-420.0,0.00027808,4]
[362094450,1747990251674,-420.0,0.00027808,4]
[362094451,1747990251683,-420.0,0.00027808,4]
[362094452,1747990251692,-420.0,0.00027808,4]
[362094453,1747990251701,-420.0,0.00027808,4]
[362094454,1747990251712,-420.0,0.00027808,4]
[362094455,1747990251723,-566.20065784,0.00027808,4]
[362094456,1747990251732,-420.0,0.00027808,4]
[362094457,1747990251741,-338.52449582,0.00027808,4]
[362094458,1747990251751,-279.89,0.00027808,4]
[362094459,1747990251761,-420.0,0.00027808,4]
[362094460,1747990251770,-753.14,0.00027808,2]
[362094461,1747990251779,-420.0,0.00027808,4]
[362094462,1747990251790,-420.0,0.00027808,4]
[362094463,1747990251799,-420.0,0.00027808,4]
[362094464,1747990251808,-359.20381062,0.00027808,4]
[362094465,1747990251817,-420.0,0.00027808,4]
[362094466,1747990251827,-235.43852235,0.00027808,4]
[362094467,1747990251836,-484.92678384,0.00027808,4]
[362094468,1747990251845,-520.50905603,0.00027808,4]
[362094469,1747990251854,-420.0,0.00027808,4]
[362094470,1747990251863,-420.0,0.00027808,4]
[362094471,1747990251872,-156.47629288,0.00027808,4]
[362094472,1747990251882,-389.59,0.00027808,4]
[362094473,1747990251891,-420.0,0.00027808,4]
[362094474,1747990251901,-428.04663334,0.00027808,4]
[362094475,1747990251910,-155.54462855,0.00027808,4]
[362094476,1747990251919,-515.31386862,0.00027808,4]
[362094477,1747990251929,-564.21325698,0.00027808,4]
[362094478,1747990251938,-420.0,0.00027808,4]
[362094479,1747990251948,-420.0,0.00027808,4]
[362094480,1747990251958,-420.0,0.00027808,4]
[362094481,1747990251967,-420.0,0.00027808,4]
[362094482,1747990251976,-521.58756401,0.00027808,4]
[362094483,1747990251985,-437.7894889,0.00027808,4]
[362094484,1747990251994,-420.0,0.00027808,4]
[362094485,1747990252003,-420.0,0.00027808,4]
[362094486,1747990252014,-559.86747567,0.00027808,4]
[362094487,1747990252024,-420.0,0.00027808,4]
[362094488,1747990252033,-420.0,0.00027808,4]
[362094489,1747990252043,-420.0,0.00027808,4]
[362094490,1747990252052,-251.4777451,0.00027808,4]
[362094491,1747990252062,-420.0,0.00027808,4]
[362094492,1747990252071,-420.0,0.00027808,4]
[362094493,1747990252081,-420.0,0.00027808,4]
[362094494,1747990252091,-420.0,0.00027808,4]
[362094495,1747990252101,-412.40255369,0.00027808,4]
[362094496,1747990252113,-420.0,0.00027808,4]
[362094497,1747990252123,-590.99,0.00027808,4]
[362094498,1747990252133,-420.0,0.00027808,4]
[362094499,1747990252143,-420.0,0.00027808,4]
[362094500,1747990252153,-420.0,0.00027808,4]
[362094501,1747990252163,-288.40857194,0.00027808,4]
[362094502,1747990252174,-505.87850583,0.00027808,4]
[362094503,1747990252184,-420.0,0.00027808,4]
[362094504,1747990252194,-420.0,0.00027808,4]
[362094505,1747990252203,-420.0,0.00027808,4]
[362094506,1747990252212,-151.0,0.00027808,7]
[362094507,1747990252221,-191.13471801,0.00027808,4]
[362094508,1747990252230,-277.78,0.00027808,4]
[362094509,1747990252239,-420.0,0.00027808,4]
[362094510,1747990252248,-232.39,0.00027808,4]
[362094511,1747990252257,-151.0,0.00027808,7]
[362094512,1747990252267,-420.0,0.00027808,4]
[362094513,1747990252276,-420.0,0.00027808,4]
[362094514,1747990252285,-164.909522,0.00027808,7]
[362094515,1747990252294,-2003.584845,0.00027808,7]
[362094516,1747990252303,-164.909522,0.00027808,7]
[362094517,1747990252313,-2003.584845,0.00027808,7]
[362094518,1747990252322,-151.0,0.00027808,7]
[362094519,1747990252331,-155.037246,0.00027808,7]
[362094520,1747990252340,-420.0,0.00027808,4]
[362094521,1747990252349,-420.0,0.00027808,4]
[362094522,1747990252359,-288.445853,0.00027808,7]
[362094523,1747990252368,-229.09,0.00027808,4]
[362094524,1747990252378,-420.0,0.00027808,4]
[362094525,1747990252388,-281.19,0.00027808,4]
[362094526,1747990252397,-420.0,0.00027808,4]
[362094527,1747990252407,-420.0,0.00027808,4]
[362094528,1747990252416,-1059.36,0.00027808,4]
[362094529,1747990252425,-638.13,0.00027808,4]
[362094530,1747990252434,-151.0,0.00027808,7]
[362094531,1747990252443,-3219.98,0.00027808,4]
[362094532,1747990252452,-420.0,0.00027808,4]
[362094533,1747990252461,-151.0,0.00027808,7]
[362094534,1747990252470,-764.74,0.00027808,4]
[362094535,1747990252479,-151.0,0.00027808,7]
[362094536,1747990252488,-420.0,0.00027808,4]
[362094537,1747990252498,-151.0,0.00027808,7]
[362094538,1747990252508,-855.11,0.00027808,4]
[362094539,1747990252520,-420.0,0.00027808,4]
[362094540,1747990252530,-1568.78,0.00027808,4]
[362094541,1747990252539,-630.80732,0.00027808,7]
[362094542,1747990252549,-151.0,0.00027808,7]
[362094543,1747990252559,-630.80732,0.00027808,7]
[362094544,1747990252568,-420.0,0.00027808,4]
[362094545,1747990252578,-536.4,0.00027808,4]
[362094546,1747990252588,-448.741556,0.00027808,4]
[362094547,1747990252597,-420.0,0.00027808,4]
[362094548,1747990252606,-420.0,0.00027808,4]
[362094549,1747990252615,-420.0,0.00027808,4]
[362094550,1747990252624,-420.0,0.00027808,4]
[362094551,1747990252634,-420.0,0.00027808,4]
[362094552,1747990252643,-420.0,0.00027808,4]
[362094553,1747990252654,-420.0,0.00027808,4]
[362094554,1747990252664,-1351.93,0.00027808,4]
[362094555,1747990252674,-420.57,0.00027808,4]
[362094556,1747990252684,-420.0,0.00027808,4]
[362094557,1747990252694,-420.0,0.00027808,4]
[362094558,1747990252704,-420.0,0.00027808,4]
[362094559,1747990252714,-420.0,0.00027808,4]
[362094560,1747990252728,-348.94100997,0.00027808,4]
[362094561,1747990252737,-8771.26,0.00027808,4]
[362094562,1747990252747,-420.0,0.00027808,4]
[362094563,1747990252757,-528.33,0.00027808,4]
[362094564,1747990252771,-472.97713212,0.00027808,4]
[362094565,1747990252781,-420.0,0.00027808,4]
[362094566,1747990252791,-420.0,0.00027808,4]
[362094567,1747990252802,-666.63,0.00027808,4]
[362094568,1747990252812,-780.1,0.00027808,2]
[362094569,1747990252822,-420.0,0.00027808,4]
[362094570,1747990252831,-420.0,0.00027808,4]
[362094571,1747990252840,-420.0,0.00027808,4]
[362094572,1747990252849,-420.0,0.00027808,4]
[362094573,1747990252859,-498.47,0.00027808,4]
[362094574,1747990252868,-420.0,0.00027808,4]
[362094575,1747990252878,-921.38,0.00027808,4]
[362094576,1747990252888,-420.0,0.00027808,4]
[362094577,1747990252898,-675.59,0.00027808,4]
[362094578,1747990252909,-458.3,0.00027808,4]
[362094579,1747990252918,-3080.82,0.00027808,4]
[362094580,1747990252928,-420.0,0.00027808,4]
[362094581,1747990252937,-420.0,0.00027808,4]
[362094582,1747990252947,-202.04227,0.00027808,7]
[362094583,1747990252956,-1795.87,0.00027808,4]
[362094584,1747990252966,-202.04227,0.00027808,7]
[362094585,1747990252975,-420.0,0.00027808,4]
[362094586,1747990252985,-420.0,0.00027808,4]
[362094587,1747990252994,-952.54,0.00027808,4]
[362094588,1747990253004,-284.97149231,0.00027845,2]
[362094589,1747990253015,-12432.5193559,0.00027863,3]
[362094590,1747990253025,-17097.20935495,0.00027869,2]
[362094591,1747990253035,-504.06119418,0.00027873,5]
[362094592,1747990253044,-1200.0,0.000279,10]
[362094593,1747990253053,-12432.5193559,0.00027934,3]
[362094594,1747990253063,-37297.5580678,0.00027935,3]
[362094595,1747990253073,-156.494447,0.00027935,7]
[362094596,1747990253084,-151.0,0.00027935,7]
[362094597,1747990253093,-420.0,0.00027944,4]
[362094598,1747990253103,-420.0,0.00027944,4]
[362094599,1747990253113,-420.0,0.00027944,4]
[362094600,1747990253124,-420.0,0.00027944,4]
[362094601,1747990253134,-420.0,0.00027944,4]
[362094602,1747990253143,-420.0,0.00027944,4]
[362094603,1747990253153,-420.0,0.00027944,4]
[362094604,1747990253163,-420.0,0.00027944,4]
[362094605,1747990253173,-420.0,0.00027944,4]
[362094606,1747990253183,-379.13,0.00027944,4]
[362094607,1747990253193,-420.0,0.00027944,4]
[362094608,1747990253203,-687.24,0.00027944,4]
[362094609,1747990253212,-420.0,0.00027944,4]
[362094610,1747990253222,-420.0,0.00027944,4]
[362094611,1747990253232,-420.0,0.00027944,4]
[362094612,1747990253241,-420.0,0.00027944,4]
[362094613,1747990253251,-420.0,0.00027944,4]
[362094614,1747990253262,-420.0,0.00027944,4]
[362094615,1747990253271,-420.0,0.00027944,4]
[362094616,1747990253281,-420.0,0.00027944,4]
[362094617,1747990253290,-420.0,0.00027944,4]
[362094618,1747990253300,-420.0,0.00027944,4]
[362094619,1747990253309,-210.22738869,0.00027944,4]
[362094620,1747990253318,-420.0,0.00027944,4]
[362094621,1747990253327,-420.0,0.00027944,4]
[362094622,1747990253336,-420.0,0.00027944,4]
[362094623,1747990253346,-420.0,0.00027944,4]
[362094624,1747990253356,-420.0,0.00027944,4]
[362094625,1747990253365,-1000.0,0.00027944,2]
[362094626,1747990253374,-420.0,0.00027944,4]
[362094627,1747990253384,-420.0,0.00027944,4]
[362094628,1747990253394,-420.0,0.00027944,4]
[362094629,1747990253403,-190.50439016,0.00027944,4]
[362094630,1747990253413,-509.24115007,0.00027944,4]
[362094631,1747990253423,-420.0,0.00027944,4]
[362094632,1747990253432,-420.0,0.00027944,4]
[362094633,1747990253442,-420.0,0.00027944,4]
[362094634,1747990253453,-420.0,0.00027944,4]
[362094635,1747990253463,-5569.15,0.00027944,4]
[362094636,1747990253473,-2347.06,0.00027944,4]
[362094637,1747990253483,-420.0,0.00027944,4]
[362094638,1747990253492,-420.0,0.00027944,4]
[362094639,1747990253502,-420.0,0.00027944,4]
[362094640,1747990253512,-420.0,0.00027944,4]
[362094641,1747990253522,-420.0,0.00027944,4]
[362094642,1747990253533,-420.0,0.00027944,4]
[362094643,1747990253543,-420.0,0.00027944,4]
[362094644,1747990253553,-5982.83,0.00027944,4]
[362094645,1747990253563,-420.0,0.00027944,4]
[362094646,1747990253573,-420.0,0.00027944,4]
[362094647,1747990253583,-420.0,0.00027944,4]
[362094648,1747990253593,-151.0,0.00027944,7]
[362094649,1747990253603,-420.0,0.00027944,4]
[362094650,1747990253613,-151.0,0.00027944,7]
[362094651,1747990253623,-420.0,0.00027944,4]
[362094652,1747990253633,-420.0,0.00027944,4]
[362094653,1747990253643,-420.0,0.00027944,4]
[362094654,1747990253653,-151.0,0.00027944,7]
[362094655,1747990253663,-542.68,0.00027944,4]
[362094656,1747990253674,-420.0,0.00027944,4]
[362094657,1747990253684,-420.0,0.00027944,4]
[362094658,1747990253693,-420.0,0.00027944,4]
[362094659,1747990253703,-420.0,0.00027944,4]
[362094660,1747990253715,-4610.09,0.00027944,4]
[362094661,1747990253727,-420.0,0.00027944,4]
[362094662,1747990253737,-521.05,0.00027944,4]
[362094663,1747990253747,-420.0,0.00027944,4]
[362094664,1747990253758,-420.0,0.00027944,4]
[362094665,1747990253768,-420.0,0.00027944,4]
[362094666,1747990253778,-420.0,0.00027944,4]
[362094667,1747990253788,-420.0,0.00027944,4]
[362094668,1747990253798,-420.0,0.00027944,4]
[362094669,1747990253809,-420.0,0.00027944,4]
[362094670,1747990253818,-989.54,0.00027944,4]
[362094671,1747990253829,-420.0,0.00027944,4]
[362094672,1747990253840,-420.0,0.00027944,4]
[362094673,1747990253850,-420.0,0.00027944,4]
[362094674,1747990253860,-420.0,0.00027944,4]
[362094675,1747990253870,-420.0,0.00027944,4]
[362094676,1747990253880,-657.76,0.00027944,4]
[362094677,1747990253889,-420.0,0.00027944,4]
[362094678,1747990253897,-649.68,0.00027944,4]
[362094679,1747990253904,-429.89055424,0.00027944,4]
[362094680,1747990253911,-420.0,0.00027944,4]
[362094681,1747990253920,-827.47,0.00027944,4]
[362094682,1747990253929,-357.73420656,0.00027944,4]
[362094683,1747990253936,-327.05,0.00027944,4]
[362094684,1747990253945,-420.0,0.00027944,4]
[362094685,1747990253953,-420.0,0.00027944,4]
[362094686,1747990253961,-420.0,0.00027944,4]
[362094687,1747990253969,-420.0,0.00027944,4]
[362094688,1747990253978,-420.0,0.00027945,4]
[362094689,1747990253986,-420.0,0.00027945,4]
[362094690,1747990253994,-420.0,0.00027945,4]
[362094691,1747990254002,-241.47595355,0.00027945,4]
[362094692,1747990254011,-420.0,0.00027945,4]
[362094693,1747990254019,-182.18,0.00027945,4]
[362094694,1747990254027,-481.48109912,0.00027945,4]
[362094695,1747990254036,-420.0,0.00027945,4]
[362094696,1747990254044,-484.01,0.00027945,4]
[362094697,1747990254052,-420.0,0.00027945,4]
[362094698,1747990254059,-420.0,0.00027945,4]
[362094699,1747990254067,-420.0,0.00027945,4]
[362094700,1747990254076,-753.14,0.00027945,2]
[362094701,1747990254085,-420.0,0.00027945,4]
[362094702,1747990254092,-420.0,0.00027945,4]
[362094703,1747990254100,-385.99702393,0.00027945,4]
[362094704,1747990254110,-546.00949869,0.00027945,4]
[362094705,1747990254117,-420.0,0.00027945,4]
[362094706,1747990254124,-420.0,0.00027945,4]
[362094707,1747990254133,-476.27,0.00027945,4]
[362094708,1747990254141,-420.0,0.00027945,4]
[362094709,1747990254150,-420.0,0.00027945,4]
[362094710,1747990254158,-176.63898649,0.00027945,4]
[362094711,1747990254166,-420.0,0.00027945,4]
[362094712,1747990254174,-420.0,0.00027945,4]
[362094713,1747990254183,-420.0,0.00027945,4]
[362094714,1747990254192,-420.0,0.00027945,4]
[362094715,1747990254200,-420.0,0.00027945,4]
[362094716,1747990254208,-420.0,0.00027945,4]
[362094717,1747990254217,-420.0,0.00027945,4]
[362094718,1747990254225,-420.0,0.00027945,4]
[362094719,1747990254233,-420.0,0.00027945,4]